bitfinex/quotes_BTCUSD_20220111
["timestamp","ask_amount","ask_price","bid_price","bid_amount"]
[1641870150326,0.00714845,42146.0,42142.0,0.67330372]
[1641870150978,0.00714845,42146.0,42142.0,0.369896]
[1641870151174,0.00714845,42146.0,42142.0,0.387896]
[1641870152372,0.00714845,42146.0,42142.0,0.67255863]
[1641870152774,0.00714845,42146.0,42142.0,0.369896]
[1641870152975,0.00714845,42146.0,42142.0,0.015]
[1641870154376,0.00714845,42146.0,42141.0,0.00928728]
[1641870155022,0.00714845,42146.0,42143.0,0.27646613]
[1641870156224,0.00714845,42146.0,42141.0,0.02428728]
[1641870156425,0.00714845,42146.0,42141.0,0.00928728]
[1641870157025,0.00714845,42146.0,42141.0,0.01928728]
[1641870157426,0.02334734,42145.0,42141.0,0.01928728]
[1641870157628,0.02334734,42145.0,42142.0,0.26977747]
[1641870157827,0.02334734,42145.0,42143.0,0.369896]
[1641870158127,0.02334734,42145.0,42141.0,0.01928728]
[1641870158327,0.39149846,42142.0,42141.0,0.35428728]
[1641870158580,0.39149846,42142.0,42141.0,0.00428728]
[1641870158882,0.39273099,42142.0,42141.0,0.00428728]
[1641870159085,0.99416288,42142.0,42141.0,0.02228728]
[1641870159279,1.41840488,42142.0,42141.0,0.02228728]
[1641870159479,1.41911959,42142.0,42141.0,0.02228728]
[1641870160482,1.41911959,42142.0,42139.0,0.0007186]
[1641870160683,0.04954513,42141.0,42139.0,0.0007186]
[1641870160881,0.00620789,42140.0,42139.0,0.0007186]
[1641870161084,0.00620789,42140.0,42139.0,0.0057186]
[1641870161685,0.00620789,42140.0,42139.0,0.005]
[1641870162326,0.00620789,42140.0,42137.0,0.00071862]
[1641870162530,0.47986399,42140.0,42137.0,0.00071862]
[1641870162726,0.43928031,42133.0,42130.0,0.0011]
[1641870162926,0.43928031,42133.0,42129.0,0.29214287]
[1641870163128,0.43928031,42133.0,42128.0,0.00287511]
[1641870163327,0.40264935,42132.0,42128.0,0.00287511]
[1641870163528,0.43928031,42133.0,42128.0,0.00287511]
[1641870163926,0.43928031,42133.0,42126.0,0.0011]
[1641870164127,0.76895777,42133.0,42128.0,0.00071872]
[1641870164626,0.43928031,42133.0,42128.0,0.00071872]
[1641870165130,0.44428031,42133.0,42128.0,0.01271872]
[1641870165326,0.44428031,42133.0,42128.0,0.01285473]
[1641870165978,0.44428031,42133.0,42128.0,0.30771461]
[1641870166373,0.43928031,42133.0,42128.0,0.29656934]
[1641870166577,0.43928031,42133.0,42128.0,0.29571461]
[1641870166772,0.43928031,42133.0,42128.0,0.00085473]
[1641870167173,0.43928031,42133.0,42128.0,0.01885473]
[1641870167572,0.43928031,42133.0,42128.0,0.01970946]
[1641870167778,0.43928031,42133.0,42129.0,0.25588034]
[1641870168375,0.41090177,42132.0,42129.0,0.25588034]
[1641870168576,0.43928031,42133.0,42126.0,0.0011]
[1641870168776,0.43928031,42133.0,42129.0,0.00069346]
[1641870169180,0.44328031,42133.0,42129.0,0.00069346]
[1641870169377,0.39312456,42132.0,42129.0,0.00069346]
[1641870169579,0.39827836,42132.0,42129.0,0.00069346]
[1641870169823,0.44328031,42133.0,42126.0,0.34713427]
[1641870170024,0.44328031,42133.0,42128.0,0.00069346]
[1641870170426,0.43928031,42133.0,42128.0,0.00069346]
[1641870171026,0.43928031,42133.0,42128.0,0.021]
[1641870171227,0.39469259,42132.0,42128.0,0.02169346]
[1641870171627,0.43928031,42133.0,42128.0,0.02169346]
[1641870172030,0.67928031,42133.0,42129.0,0.25236138]
[1641870172628,0.4052948,42132.0,42128.0,0.00085473]
[1641870172831,0.67928031,42133.0,42128.0,0.00085473]
[1641870173032,0.68428031,42133.0,42129.0,0.012]
[1641870173681,0.68428031,42133.0,42129.0,0.01285472]
[1641870174281,0.39185529,42132.0,42129.0,0.00085472]
[1641870174482,0.4008338,42132.0,42129.0,0.00085472]
[1641870174681,0.4008338,42132.0,42126.0,0.0011]
[1641870174882,0.72928031,42133.0,42128.0,0.00085473]
[1641870175082,0.39392757,42132.0,42129.0,0.007]
[1641870175685,0.67928031,42133.0,42129.0,0.007]
[1641870175686,1.06717033,42133.0,42129.0,0.007]
[1641870175882,1.11717033,42133.0,42129.0,0.007]
[1641870176282,1.11717033,42133.0,42128.0,0.0007246]
[1641870176483,0.72928031,42133.0,42128.0,0.0007246]
[1641870176884,0.39289135,42132.0,42128.0,0.25335217]
[1641870177084,0.67928031,42133.0,42128.0,0.26062757]
[1641870177326,0.67928031,42133.0,42128.0,0.26135217]
[1641870177926,0.67928031,42133.0,42130.0,0.32701478]
[1641870179127,0.67928031,42133.0,42130.0,0.005]
[1641870179529,0.3916763,42126.0,42122.0,0.04863373]
[1641870179827,0.3916763,42126.0,42123.0,0.37317805]
[1641870180233,0.3916763,42126.0,42124.0,0.26347844]
[1641870180430,0.02334734,42125.0,42124.0,0.26347844]
[1641870181278,0.02334734,42125.0,42124.0,0.63147844]
[1641870182276,0.02334734,42125.0,42124.0,0.61347844]
[1641870183076,0.02334734,42125.0,42124.0,1.40137444]
[1641870184079,0.44260952,42129.0,42124.0,0.65137444]
[1641870184278,0.44260952,42129.0,42124.0,0.26347844]
[1641870185128,0.44260952,42129.0,42124.0,0.27547844]
[1641870185529,0.44260952,42129.0,42122.0,0.04814052]
[1641870185530,0.45,42127.0,42122.0,0.04814052]
[1641870185729,0.00121963,42125.0,42124.0,0.0007072]
[1641870185931,0.04851963,42125.0,42124.0,0.0007072]
[1641870186530,0.31623029,42125.0,42124.0,0.0007072]
[1641870186730,0.04851963,42125.0,42124.0,0.0007072]
[1641870186930,0.04851963,42125.0,42122.0,0.04815256]
[1641870187130,0.13589763,42125.0,42124.0,0.002]
[1641870187530,0.07651963,42125.0,42124.0,0.002]
[1641870187931,0.49853626,42125.0,42124.0,0.002]
[1641870188582,0.09986697,42125.0,42124.0,0.002]
[1641870188786,0.09864734,42125.0,42124.0,0.002]
[1641870188979,0.09864734,42125.0,42122.0,0.04815256]
[1641870188980,0.07064734,42125.0,42122.0,0.04815256]
[1641870189279,0.12864734,42125.0,42122.0,0.04815256]
[1641870189480,0.00126539,42124.0,42122.0,0.04815256]
[1641870189679,0.04856539,42124.0,42122.0,0.04815256]
[1641870189979,0.0473,42124.0,42122.0,0.04815256]
[1641870190180,0.02334734,42123.0,42122.0,0.0474333]
[1641870191181,0.07634734,42123.0,42122.0,0.0494333]
[1641870192424,0.02334734,42123.0,42122.0,0.0474333]
[1641870192624,0.26334734,42123.0,42122.0,0.0474333]
[1641870193226,0.31734734,42123.0,42122.0,0.0444333]
[1641870194427,0.26334734,42123.0,42122.0,0.0424333]
[1641870195228,0.32134734,42123.0,42122.0,0.0434333]
[1641870196483,0.26334734,42123.0,42122.0,0.0424333]
[1641870197179,0.29134734,42123.0,42122.0,0.0444333]
[1641870198480,0.26334734,42123.0,42122.0,0.0424333]
[1641870199278,0.29234734,42123.0,42122.0,0.0444333]
[1641870199729,0.39234734,42123.0,42122.0,0.0444333]
[1641870199929,0.39950065,42123.0,42122.0,0.0444333]
[1641870200128,0.49950065,42123.0,42122.0,0.0444333]
[1641870200530,0.49950065,42123.0,42122.0,0.0424333]
[1641870200831,0.47050065,42123.0,42122.0,0.0424333]
[1641870201033,0.51467574,42123.0,42122.0,0.0424333]
[1641870201232,0.52867574,42123.0,42122.0,0.0444333]
[1641870201435,0.62867574,42123.0,42122.0,0.0444333]
[1641870201632,0.94432165,42123.0,42122.0,0.0444333]
[1641870201833,0.94923365,42123.0,42122.0,0.0444333]
[1641870202231,0.94423365,42123.0,42122.0,0.0444333]
[1641870202433,0.93023365,42123.0,42122.0,0.0424333]
[1641870203234,0.77623365,42123.0,42122.0,0.0434333]
[1641870203474,0.73205856,42123.0,42122.0,0.0434333]
[1641870203675,0.41768412,42123.0,42122.0,0.0434333]
[1641870203873,0.46768412,42123.0,42122.0,0.0434333]
[1641870204274,0.51768412,42123.0,42122.0,0.0434333]
[1641870204473,0.27668412,42123.0,42122.0,0.31483102]
[1641870204679,0.27668412,42123.0,42122.0,0.70521544]
[1641870204680,0.26334734,42123.0,42122.0,0.70521544]
[1641870205074,0.30234734,42123.0,42122.0,0.31983102]
[1641870205876,0.30234734,42123.0,42122.0,0.0474333]
[1641870206478,0.26334734,42123.0,42122.0,0.0424333]
[1641870207078,0.26334734,42123.0,42122.0,0.0504333]
[1641870207331,0.28234734,42123.0,42122.0,0.0504333]
[1641870208529,0.26334734,42123.0,42122.0,0.0424333]
[1641870209228,0.27434734,42123.0,42122.0,0.0514333]
[1641870209629,0.27434734,42123.0,42122.0,0.77517617]
[1641870209832,0.27434734,42123.0,42122.0,1.17517617]
[1641870210230,0.27434734,42123.0,42122.0,1.54507217]
[1641870210530,0.26334734,42123.0,42122.0,1.53607217]
[1641870210830,0.26334734,42123.0,42122.0,1.15526775]
[1641870211080,0.27234734,42123.0,42122.0,1.16526775]
[1641870211779,0.27234734,42123.0,42122.0,0.76526775]
[1641870212382,0.26334734,42123.0,42122.0,0.75421175]
[1641870212680,0.26334734,42123.0,42122.0,0.4112733]
[1641870212880,0.26334734,42123.0,42122.0,0.0413773]
[1641870213083,0.26334734,42123.0,42122.0,0.0503773]
[1641870213781,0.26334734,42123.0,42122.0,0.6003773]
[1641870214481,0.26334734,42123.0,42122.0,0.5913773]
[1641870215131,0.26334734,42123.0,42122.0,0.0493773]
[1641870215730,0.26334734,42123.0,42122.0,0.4993773]
[1641870216331,0.26334734,42123.0,42122.0,0.4913773]
[1641870217132,0.26334734,42123.0,42122.0,0.0493773]
[1641870217733,0.26334734,42123.0,42122.0,0.9692733]
[1641870218485,0.26334734,42123.0,42122.0,0.5913773]
[1641870218778,0.26334734,42123.0,42122.0,0.0413773]
[1641870219177,0.26334734,42123.0,42122.0,0.0493773]
[1641870220380,0.26334734,42123.0,42122.0,0.0413773]
[1641870220681,0.26334734,42123.0,42122.0,0.3413773]
[1641870221080,0.26334734,42123.0,42122.0,0.3493773]
[1641870221281,0.26334734,42123.0,42122.0,0.03919503]
[1641870221480,0.26334734,42123.0,42122.0,0.03701263]
[1641870221681,0.26334734,42123.0,42122.0,0.33701263]
[1641870221982,0.26334734,42123.0,42122.0,0.03701263]
[1641870222431,0.26334734,42123.0,42122.0,0.02901263]
[1641870222631,0.26334734,42123.0,42122.0,0.27901263]
[1641870223234,0.86660807,42139.0,42126.0,1.45]
[1641870223438,0.8046051,42139.0,42138.0,1.08670607]
[1641870223632,0.8046051,42139.0,42138.0,1.48511232]
[1641870224232,0.8046051,42139.0,42138.0,1.91246941]
[1641870224433,0.594,42140.0,42138.0,0.82576334]
[1641870224633,0.594,42140.0,42136.0,0.00071872]
[1641870224835,0.594,42140.0,42138.0,0.0012412]
[1641870225835,0.37332509,42140.0,42138.0,0.0012412]
[1641870226088,0.00049417,42148.0,42138.0,0.0012412]
[1641870226089,0.00049417,42148.0,42141.0,0.05933]
[1641870226290,0.00049417,42148.0,42142.0,0.8155853]
[1641870226487,0.000494,42148.0,42146.0,0.00129686]
[1641870226891,0.000494,42148.0,42143.0,0.0473]
[1641870227287,0.000494,42148.0,42146.0,0.005]
[1641870228088,0.00764249,42148.0,42146.0,0.005]
[1641870228486,0.00764249,42148.0,42143.0,0.34403358]
[1641870228686,0.00764249,42148.0,42143.0,0.0473]
[1641870229289,0.00764249,42148.0,42143.0,0.0513]
[1641870229290,0.23859558,42147.0,42143.0,0.0513]
[1641870230229,0.0076425,42148.0,42143.0,0.0513]
[1641870230433,0.0076425,42148.0,42143.0,0.0473]
[1641870230830,0.0669895,42148.0,42143.0,0.0473]
[1641870231335,0.39523555,42147.0,42143.0,0.006]
[1641870231532,0.26349437,42146.0,42143.0,0.006]
[1641870231730,0.009834,42145.0,42143.0,0.006]
[1641870231930,0.59147095,42144.0,42143.0,0.006]
[1641870232130,0.75475015,42144.0,42143.0,0.006]
[1641870232632,0.35130495,42144.0,42139.0,0.00071862]
[1641870232832,0.34147095,42144.0,42139.0,0.00071862]
[1641870233035,0.009834,42143.0,42139.0,0.00071862]
[1641870233232,0.009834,42143.0,42139.0,0.00671862]
[1641870233882,0.009834,42143.0,42139.0,0.00672039]
[1641870234481,0.009834,42143.0,42139.0,0.00072039]
[1641870234682,0.34147095,42144.0,42139.0,0.00072039]
[1641870234882,0.009834,42143.0,42139.0,0.00072039]
[1641870235282,0.009834,42143.0,42139.0,0.00472039]
[1641870235686,0.34147095,42144.0,42139.0,0.00472039]
[1641870236083,0.34147095,42144.0,42139.0,0.30169276]
[1641870236284,0.009834,42143.0,42139.0,0.00472039]
[1641870236484,0.009834,42143.0,42139.0,0.00072039]
[1641870237330,0.009834,42143.0,42139.0,0.007]
[1641870237530,0.009834,42143.0,42139.0,0.00772035]
[1641870238533,0.009834,42143.0,42139.0,0.00072035]
[1641870239332,0.009834,42143.0,42139.0,0.00772035]
[1641870239533,0.026778,42145.0,42139.0,0.00772035]
[1641870239734,0.009834,42144.0,42139.0,0.00772035]
[1641870239932,0.00969362,42144.0,42139.0,0.00772035]
[1641870240134,0.00955324,42144.0,42139.0,0.00772035]
[1641870240334,0.44859096,42141.0,42139.0,0.00772035]
[1641870240534,0.00926362,42140.0,42139.0,0.00772035]
[1641870240989,0.00912324,42140.0,42139.0,0.00072035]
[1641870241182,0.00898286,42140.0,42139.0,0.007]
[1641870241382,0.00884248,42140.0,42139.0,0.007]
[1641870241782,0.0087021,42140.0,42139.0,0.007]
[1641870241982,0.00856172,42140.0,42139.0,0.007]
[1641870242382,0.00842134,42140.0,42137.0,0.00071851]
[1641870242682,0.31600573,42143.0,42137.0,0.00071851]
[1641870242883,0.00827862,42142.0,42137.0,0.00071851]
[1641870243384,0.05799786,42142.0,42137.0,0.00871851]
[1641870243783,0.05785748,42142.0,42137.0,0.00871851]
[1641870243983,0.0577171,42142.0,42137.0,0.00871851]
[1641870244183,0.2977171,42142.0,42137.0,0.00871851]
[1641870244384,0.29757672,42142.0,42137.0,0.00871851]
[1641870244585,0.29743634,42142.0,42137.0,0.00071851]
[1641870244829,0.29729596,42142.0,42137.0,0.00072533]
[1641870245228,0.29715558,42142.0,42137.0,0.00772533]
[1641870245428,0.2970152,42142.0,42137.0,0.00772533]
[1641870245635,0.28887696,42142.0,42137.0,0.00772533]
[1641870246034,0.23985962,42142.0,42137.0,0.00772533]
[1641870246233,0.23985962,42142.0,42138.0,0.0012639]
[1641870246234,0.23971924,42142.0,42138.0,0.0012639]
[1641870246432,0.23957886,42142.0,42138.0,0.0012639]
[1641870246830,0.23943848,42142.0,42138.0,0.0012639]
[1641870247030,0.23943848,42142.0,42138.0,0.00198923]
[1641870247031,0.2392981,42142.0,42138.0,0.00198923]
[1641870247229,0.23915772,42142.0,42138.0,0.00898923]
[1641870247430,0.23901734,42142.0,42138.0,0.00898923]
[1641870247630,0.23887696,42142.0,42138.0,0.32460351]
[1641870248031,0.23873658,42142.0,42138.0,0.32387818]
[1641870248235,0.2385962,42142.0,42138.0,0.32459475]
[1641870248505,0.2385962,42142.0,42138.0,0.31759475]
[1641870248699,0.23831544,42142.0,42138.0,0.31633085]
[1641870248901,0.23817506,42142.0,42138.0,0.00071657]
[1641870249098,0.00785862,42141.0,42138.0,0.00071657]
[1641870249298,0.00771824,42141.0,42138.0,0.007]
[1641870249499,0.00757786,42141.0,42138.0,0.00771657]
[1641870249699,0.00743748,42141.0,42138.0,0.00771657]
[1641870250201,0.0072971,42141.0,42138.0,0.00771657]
[1641870250400,0.00715672,42141.0,42138.0,0.007]
[1641870250601,0.00701634,42141.0,42137.0,0.00071657]
[1641870250800,0.00687596,42141.0,42137.0,0.00071657]
[1641870251000,0.0065952,42141.0,42137.0,0.00071657]
[1641870251199,0.00645482,42141.0,42137.0,0.00771657]
[1641870251403,0.00631444,42141.0,42137.0,0.00771657]
[1641870251599,0.00603368,42141.0,42137.0,0.00771657]
[1641870251799,0.24518391,42142.0,42137.0,0.00773427]
[1641870251999,0.006033,42141.0,42137.0,0.00773427]
[1641870252233,0.00575224,42141.0,42137.0,0.00773427]
[1641870252434,0.00561186,42141.0,42137.0,0.00073427]
[1641870252635,0.24490315,42142.0,42137.0,0.00073427]
[1641870252838,0.24490315,42142.0,42136.0,0.32543932]
[1641870253036,0.24476277,42142.0,42137.0,0.00073427]
[1641870253236,0.24462239,42142.0,42137.0,0.00773427]
[1641870253435,0.24448201,42142.0,42137.0,0.00773427]
[1641870253640,0.24434163,42142.0,42137.0,0.00773427]
[1641870253838,0.24420125,42142.0,42137.0,0.00773427]
[1641870254040,0.24406087,42142.0,42137.0,0.007]
[1641870254238,0.24392049,42142.0,42137.0,0.00773427]
[1641870254438,0.24378011,42142.0,42137.0,0.00073427]
[1641870254638,0.24363973,42142.0,42137.0,0.00073427]
[1641870254839,0.24349935,42142.0,42137.0,0.00073427]
[1641870255040,0.24335897,42142.0,42137.0,0.00073427]
[1641870255240,0.24321859,42142.0,42137.0,0.007]
[1641870255441,0.24321859,42142.0,42137.0,0.00772612]
[1641870255442,0.24307821,42142.0,42137.0,0.00772612]
[1641870255640,0.24293783,42142.0,42137.0,0.00772612]
[1641870256083,0.24279745,42142.0,42137.0,0.00772612]
[1641870256281,0.24265707,42142.0,42137.0,0.00772612]
[1641870256483,0.24237631,42142.0,42137.0,0.007]
[1641870256684,0.24237631,42142.0,42137.0,0.00772612]
[1641870256882,0.24209555,42142.0,42137.0,0.00772612]
[1641870257182,0.24181479,42142.0,42137.0,0.00772612]
[1641870257382,0.24167441,42142.0,42138.0,0.43291079]
[1641870257581,0.24153403,42142.0,42138.0,0.43291079]
[1641870257782,0.24125327,42142.0,42137.0,0.00845224]
[1641870257981,0.24111289,42142.0,42137.0,0.00772612]
[1641870258183,0.24097251,42142.0,42137.0,0.00772612]
[1641870258383,0.24083213,42142.0,42137.0,0.00772612]
[1641870258583,0.24069175,42142.0,42137.0,0.00072612]
[1641870258781,0.24055137,42142.0,42137.0,0.00072612]
[1641870259081,0.24041099,42142.0,42137.0,0.00071832]
[1641870259285,0.24013023,42142.0,42137.0,0.00871832]
[1641870259482,0.23998985,42142.0,42137.0,0.37856509]
[1641870259733,0.23984947,42142.0,42137.0,0.37856509]
[1641870259934,0.23970909,42142.0,42137.0,0.37856509]
[1641870260134,0.23956871,42142.0,42137.0,0.37856509]
[1641870260434,0.23928795,42142.0,42137.0,0.00071832]
[1641870260642,0.23914757,42142.0,42137.0,0.00071832]
[1641870260833,0.23900719,42142.0,42137.0,0.00071832]
[1641870261236,0.23900719,42142.0,42137.0,0.008]
[1641870261435,0.23900719,42142.0,42137.0,0.00871832]
[1641870262235,0.23900719,42142.0,42140.0,0.43931745]
[1641870262935,0.23900719,42142.0,42137.0,0.00081896]
[1641870263334,0.23900719,42142.0,42140.0,0.006]
[1641870263983,0.23900719,42142.0,42141.0,0.39929043]
[1641870264179,0.23900719,42142.0,42140.0,0.006]
[1641870264581,0.23900719,42142.0,42137.0,0.00081896]
[1641870265081,0.23900719,42142.0,42139.0,0.00081894]
[1641870266284,0.23900719,42142.0,42138.0,0.00070755]
[1641870267330,0.23900719,42142.0,42138.0,0.008]
[1641870267529,0.23900719,42142.0,42138.0,0.00870755]
[1641870268534,0.23900719,42142.0,42138.0,0.00070755]
[1641870269334,0.23900719,42142.0,42138.0,0.00970755]
[1641870269835,0.23900719,42142.0,42138.0,0.00971892]
[1641870270441,0.23900719,42142.0,42138.0,0.00071892]
[1641870270640,0.20900719,42142.0,42138.0,0.00071892]
[1641870271282,0.20900719,42142.0,42138.0,0.00971892]
[1641870272580,0.20900719,42142.0,42138.0,0.00071892]
[1641870273181,0.20900719,42142.0,42138.0,0.00971892]
[1641870273379,0.20900719,42142.0,42138.0,0.01043788]
[1641870273580,0.20900719,42142.0,42138.0,0.00971896]
[1641870273880,0.20900719,42142.0,42138.0,0.34708053]
[1641870274283,0.09446911,42148.0,42140.0,1.45]
[1641870274482,0.26676668,42150.0,42146.0,0.09628129]
[1641870274736,0.8141201,42156.0,42149.0,1.10121947]
[1641870274737,0.26676668,42151.0,42149.0,1.10121947]
[1641870274938,0.26676668,42151.0,42150.0,1.517766]
[1641870275135,0.26676668,42151.0,42150.0,0.477077]
[1641870275434,0.429515,42156.0,42150.0,0.0473]
[1641870275435,0.43323371,42156.0,42150.0,0.0473]
[1641870275634,0.00357833,42153.0,42150.0,0.0473]
[1641870275834,0.43309333,42156.0,42150.0,0.0473]
[1641870276034,0.43295295,42156.0,42150.0,0.0473]
[1641870276335,0.42923424,42156.0,42154.0,0.00129458]
[1641870276535,0.42909386,42156.0,42154.0,0.00129458]
[1641870276734,0.43253181,42156.0,42154.0,0.00129458]
[1641870276937,0.4288131,42156.0,42153.0,0.32531337]
[1641870277136,0.4288131,42156.0,42153.0,0.32031337]
[1641870277336,0.4288131,42156.0,42154.0,0.006]
[1641870277540,0.00357833,42155.0,42154.0,0.006]
[1641870277840,0.4288131,42156.0,42154.0,0.38085996]
[1641870278039,0.4288131,42156.0,42155.0,0.770466]
[1641870278239,0.4288131,42156.0,42155.0,0.765466]
[1641870278685,0.4288131,42156.0,42155.0,0.74576328]
[1641870278887,0.43239143,42156.0,42155.0,0.365466]
[1641870279086,0.43239143,42156.0,42154.0,0.0012203]
[1641870279087,0.4288131,42156.0,42154.0,0.0012203]
[1641870279287,0.43239143,42156.0,42155.0,0.005]
[1641870279488,0.43098763,42156.0,42155.0,0.005]
[1641870280488,0.43098763,42156.0,42154.0,0.0012203]
[1641870281289,0.43098763,42156.0,42154.0,0.0062203]
[1641870281488,0.42357833,42156.0,42154.0,0.0012203]
[1641870282332,0.42357833,42156.0,42151.0,0.24307854]
[1641870282535,0.00357833,42153.0,42152.0,0.0473]
[1641870282736,0.00357833,42153.0,42152.0,0.417627]
[1641870283135,0.42049046,42156.0,42152.0,0.417627]
[1641870283334,0.00357833,42153.0,42152.0,0.424627]
[1641870283833,0.66406879,42156.0,42152.0,0.7903212]
[1641870284033,0.66406879,42156.0,42152.0,0.424627]
[1641870284233,0.00357833,42153.0,42152.0,0.0543]
[1641870284434,0.00329757,42153.0,42152.0,0.424627]
[1641870284634,0.00329757,42153.0,42152.0,0.78355061]
[1641870285338,0.00329757,42153.0,42152.0,0.79055061]
[1641870285635,0.00329757,42153.0,42152.0,0.424627]
[1641870286578,0.00329757,42153.0,42152.0,0.0473]
[1641870286781,0.35628126,42155.0,42152.0,0.0473]
[1641870287079,0.00048991,42155.0,42152.0,0.0473]
[1641870287279,0.00329757,42153.0,42152.0,0.0523]
[1641870287478,0.00329757,42153.0,42152.0,0.422627]
[1641870288682,0.00329757,42153.0,42152.0,0.417627]
[1641870288882,0.00329757,42153.0,42146.0,0.89006188]
[1641870289082,0.00049148,42155.0,42147.0,0.370327]
[1641870289281,0.00329757,42148.0,42147.0,0.370327]
[1641870289482,0.00329757,42148.0,42147.0,0.74032057]
[1641870289730,0.2536412,42152.0,42147.0,0.74032057]
[1641870290031,0.2536412,42152.0,42147.0,0.370327]
[1641870290032,0.00329757,42148.0,42147.0,0.370327]
[1641870290635,0.00329757,42148.0,42143.0,0.00071878]
[1641870290636,0.25161114,42148.0,42143.0,0.00071878]
[1641870290833,0.00329757,42144.0,42143.0,0.00071878]
[1641870291336,0.00929757,42144.0,42143.0,0.015]
[1641870292638,0.00329757,42144.0,42141.0,0.00071883]
[1641870293489,0.03329757,42144.0,42141.0,0.01071883]
[1641870293684,0.03329757,42144.0,42141.0,0.01]
[1641870294187,0.03329757,42144.0,42142.0,0.370327]
[1641870294385,0.03329757,42144.0,42141.0,0.01]
[1641870294586,0.00329757,42144.0,42140.0,0.00071884]
[1641870294785,0.00329757,42141.0,42140.0,0.40071884]
[1641870294986,0.00329757,42141.0,42140.0,0.77104584]
[1641870295185,0.00329757,42141.0,42140.0,1.11452671]
[1641870295388,0.00329757,42141.0,42140.0,0.7830831]
[1641870296285,0.00329757,42141.0,42140.0,0.782327]
[1641870296686,0.00329757,42141.0,42140.0,1.05048631]
[1641870296887,0.70877113,42148.0,42141.0,0.370327]
[1641870297087,0.75877113,42148.0,42140.0,0.68015931]
[1641870297335,0.78877113,42148.0,42141.0,0.01]
[1641870297537,0.78877113,42148.0,42142.0,0.00075608]
[1641870297738,0.010634,42147.0,42142.0,0.00075608]
[1641870298639,0.33686597,42147.0,42142.0,0.00071696]
[1641870299337,0.34686597,42147.0,42142.0,0.00971696]
[1641870299838,0.020634,42147.0,42142.0,0.00971696]
[1641870300240,0.020634,42147.0,42142.0,0.39129414]
[1641870300241,0.01,42147.0,42142.0,0.39129414]
[1641870300448,0.01,42147.0,42144.0,0.00120065]
[1641870301182,0.00049981,42150.0,42144.0,0.00120065]
[1641870301383,0.003,42147.0,42144.0,0.01120065]
[1641870302185,0.003,42147.0,42145.0,0.370327]
[1641870302484,0.003,42147.0,42146.0,0.38586131]
[1641870302686,0.00048701,42150.0,42146.0,0.720327]
[1641870302986,0.00048701,42150.0,42147.0,0.370327]
[1641870303389,0.00148701,42150.0,42147.0,0.370327]
[1641870303589,0.00148706,42150.0,42148.0,0.24516851]
[1641870303788,0.00148706,42150.0,42149.0,1.020327]
[1641870303987,0.00148706,42150.0,42149.0,0.370327]
[1641870304187,0.00148706,42150.0,42148.0,0.24516851]
[1641870304387,0.00148706,42150.0,42146.0,0.007]
[1641870304587,0.00048706,42150.0,42147.0,0.370327]
[1641870304837,0.00048707,42152.0,42144.0,0.41408108]
[1641870305437,0.00048707,42152.0,42144.0,0.42708108]
[1641870305638,0.00048707,42152.0,42147.0,0.29873061]
[1641870305838,0.00049223,42150.0,42147.0,0.29873061]
[1641870306041,0.00049223,42150.0,42148.0,0.370327]
[1641870306838,0.00049223,42150.0,42144.0,0.00120065]
[1641870307041,0.47699335,42147.0,42143.0,0.00143843]
[1641870307238,0.47699335,42147.0,42143.0,0.00071922]
[1641870307438,0.47699335,42147.0,42144.0,0.012]
[1641870307844,0.77507336,42147.0,42144.0,0.012]
[1641870308238,0.29808001,42147.0,42144.0,0.012]
[1641870308687,0.29808001,42147.0,42143.0,0.00071919]
[1641870309484,0.29808001,42147.0,42143.0,0.01571869]
[1641870311295,0.29808001,42147.0,42143.0,0.00071869]
[1641870311490,0.29808001,42147.0,42143.0,0.01571869]
[1641870312737,0.29808001,42147.0,42143.0,0.00071869]
[1641870313134,0.29808001,42147.0,42143.0,0.00071888]
[1641870313536,0.29808001,42147.0,42143.0,0.01571888]
[1641870314336,0.29808001,42147.0,42143.0,0.01571893]
[1641870314538,0.010634,42146.0,42143.0,0.00071893]
[1641870315337,0.41973621,42146.0,42143.0,0.01471893]
[1641870315537,0.65973621,42146.0,42143.0,0.014]
[1641870317284,0.24,42146.0,42142.0,0.00071889]
[1641870317485,0.248,42146.0,42143.0,0.384327]
[1641870317884,0.248,42146.0,42143.0,0.269327]
[1641870318284,0.248,42146.0,42144.0,0.3215367]
[1641870318487,0.248,42146.0,42145.0,1.170327]
[1641870318685,0.24,42146.0,42145.0,1.170327]
[1641870319484,0.24,42146.0,42145.0,1.55408946]
[1641870320735,0.24,42146.0,42145.0,1.54308946]
[1641870321637,0.24,42146.0,42145.0,1.55408946]
[1641870322437,0.24,42146.0,42145.0,0.75408946]
[1641870322637,0.24,42146.0,42145.0,0.74308946]
[1641870323582,0.24,42146.0,42145.0,1.05408946]
[1641870324681,0.24,42146.0,42145.0,0.74308946]
[1641870325482,0.264,42146.0,42145.0,0.99693592]
[1641870325884,0.264,42146.0,42145.0,0.631327]
[1641870326786,0.24,42146.0,42145.0,0.620327]
[1641870327250,0.24,42146.0,42145.0,0.620561]
[1641870327442,0.247,42146.0,42145.0,0.930561]
[1641870327644,0.247,42146.0,42145.0,2.185561]
[1641870327842,0.247,42146.0,42145.0,0.630561]
[1641870328644,0.24,42146.0,42145.0,0.620561]
[1641870329245,0.24,42146.0,42145.0,1.0661628]
[1641870329447,0.243,42146.0,42145.0,1.5261628]
[1641870329644,0.243,42146.0,42145.0,1.0761628]
[1641870330645,0.243,42146.0,42145.0,1.0661628]
[1641870330646,0.24,42146.0,42145.0,1.0661628]
[1641870331084,0.24,42146.0,42145.0,0.620561]
[1641870331385,0.24,42146.0,42145.0,0.930561]
[1641870331583,0.245,42146.0,42145.0,2.185561]
[1641870332785,0.24,42146.0,42145.0,2.175561]
[1641870333187,0.24,42146.0,42145.0,1.875561]
[1641870333687,0.24,42146.0,42145.0,0.632561]
[1641870334835,0.24,42146.0,42145.0,0.370561]
[1641870335035,0.24,42146.0,42145.0,0.000234]
[1641870335435,0.24,42146.0,42145.0,0.012234]
[1641870335635,0.63863019,42146.0,42145.0,0.012234]
[1641870335835,0.36562,42146.0,42145.0,0.012234]
[1641870336235,1.08611829,42146.0,42145.0,0.007234]
[1641870336435,0.70229476,42146.0,42145.0,0.007234]
[1641870336836,0.70229476,42146.0,42143.0,0.00071887]
[1641870337036,0.57667476,42146.0,42143.0,0.00143774]
[1641870337238,0.12562,42145.0,42143.0,0.00071887]
[1641870337436,0.57667476,42146.0,42143.0,0.01571887]
[1641870338238,0.57667476,42146.0,42143.0,0.015]
[1641870338495,0.12562,42145.0,42143.0,0.015]
[1641870338689,0.4010717,42144.0,42142.0,0.00071888]
[1641870338890,0.12562,42143.0,42142.0,0.00071888]
[1641870339091,0.13277046,42143.0,42142.0,0.00071888]